[Event "Late-Titled-Tuesday-Blitz-February-20-2024"]
[Site "Chess.com"]
[Date "2024.02.20"]
[Round "11"]
[White "Duhless"]
[Black "Msb2"]
[Result "1/2-1/2"]
[WhiteElo "3092"]
[BlackElo "3030"]
[TimeControl "180+1"]
[EndTime "16:04:59 PST"]
[Termination "Game drawn by repetition"]

1. d4 {[%clk 0:03:00.9]} 1... d5 {[%clk 0:02:57.9]} 2. Nf3 {[%clk 0:03:00.6]}
2... e6 {[%clk 0:02:58.4]} 3. c4 {[%clk 0:02:59.5]} 3... Nf6 {[%clk 0:02:58.7]}
4. g3 {[%clk 0:02:58.9]} 4... Nc6 {[%clk 0:02:59]} 5. Bg2 {[%clk 0:02:57.9]}
5... Bd6 {[%clk 0:02:59.7]} 6. O-O {[%clk 0:02:56.5]} 6... O-O {[%clk
0:03:00.3]} 7. Bg5 {[%clk 0:02:54]} 7... h6 {[%clk 0:02:57.9]} 8. Bxf6 {[%clk
0:02:53.7]} 8... Qxf6 {[%clk 0:02:58.8]} 9. cxd5 {[%clk 0:02:48.2]} 9... exd5
{[%clk 0:02:59.7]} 10. Nc3 {[%clk 0:02:48.1]} 10... Ne7 {[%clk 0:02:59.9]} 11.
Nb5 {[%clk 0:02:45.2]} 11... c6 {[%clk 0:02:52.5]} 12. Nxd6 {[%clk 0:02:44.7]}
12... Qxd6 {[%clk 0:02:53.4]} 13. Ne5 {[%clk 0:02:44.5]} 13... Bf5 {[%clk
0:02:50.6]} 14. e3 {[%clk 0:02:43.8]} 14... Ng6 {[%clk 0:02:49.7]} 15. Nd3
{[%clk 0:02:43.7]} 15... Rfe8 {[%clk 0:02:48.8]} 16. h4 {[%clk 0:02:40.3]} 16...
Rab8 {[%clk 0:02:48.8]} 17. h5 {[%clk 0:02:39.4]} 17... Ne7 {[%clk 0:02:44]} 18.
Nf4 {[%clk 0:02:38.8]} 18... Nc8 {[%clk 0:02:41.4]} 19. Rc1 {[%clk 0:02:36.7]}
19... Qf6 {[%clk 0:02:40.7]} 20. Qa4 {[%clk 0:02:32.9]} 20... Rd8 {[%clk
0:02:25.7]} 21. b4 {[%clk 0:02:24.3]} 21... a6 {[%clk 0:02:25.5]} 22. Qb3 {[%clk
0:02:24.6]} 22... Nd6 {[%clk 0:02:25.3]} 23. a4 {[%clk 0:02:25]} 23... Re8
{[%clk 0:02:24.3]} 24. b5 {[%clk 0:02:11.8]} 24... axb5 {[%clk 0:02:20.9]} 25.
axb5 {[%clk 0:02:12.7]} 25... Be4 {[%clk 0:02:02]} 26. Bxe4 {[%clk 0:01:55.1]}
26... Nxe4 {[%clk 0:01:58.7]} 27. bxc6 {[%clk 0:01:54.6]} 27... bxc6 {[%clk
0:01:58.1]} 28. Qc2 {[%clk 0:01:47.4]} 28... Rb6 {[%clk 0:01:46.3]} 29. Rb1
{[%clk 0:01:45.9]} 29... Rxb1 {[%clk 0:01:44.7]} 30. Rxb1 {[%clk 0:01:45.5]}
30... Qd6 {[%clk 0:01:40.3]} 31. Rb6 {[%clk 0:01:36.1]} 31... Rc8 {[%clk
0:01:39.6]} 32. Kg2 {[%clk 0:01:36.2]} 32... Qd7 {[%clk 0:01:36]} 33. Nd3 {[%clk
0:01:17.5]} 33... Qf5 {[%clk 0:01:22.8]} 34. Rxc6 {[%clk 0:00:50.7]} 34... Rxc6
{[%clk 0:01:21.8]} 35. Qxc6 {[%clk 0:00:51.6]} 35... Nxg3 {[%clk 0:01:08.8]} 36.
Kxg3 {[%clk 0:00:28.5]} 36... Qxd3 {[%clk 0:01:08.8]} 37. Qe8+ {[%clk
0:00:21.3]} 37... Kh7 {[%clk 0:01:08.4]} 38. Qxf7 {[%clk 0:00:22.2]} 38... Qe4
{[%clk 0:00:56.3]} 39. Qf4 {[%clk 0:00:20.6]} 39... Qb1 {[%clk 0:00:55.5]} 40.
Kg2 {[%clk 0:00:16.7]} 40... Qc2 {[%clk 0:00:39.5]} 41. Qf3 {[%clk 0:00:16]}
41... Qc6 {[%clk 0:00:39.7]} 42. Qf5+ {[%clk 0:00:16.1]} 42... Kh8 {[%clk
0:00:40.2]} 43. Qf8+ {[%clk 0:00:16]} 43... Kh7 {[%clk 0:00:40.8]} 44. Qf5+
{[%clk 0:00:16.7]} 44... Kh8 {[%clk 0:00:41.5]} 45. Kf3 {[%clk 0:00:16.1]} 45...
Qb7 {[%clk 0:00:40.2]} 46. Qf8+ {[%clk 0:00:15.7]} 46... Kh7 {[%clk 0:00:40.5]}
47. Qf5+ {[%clk 0:00:16.4]} 47... Kh8 {[%clk 0:00:41.2]} 48. Kg4 {[%clk
0:00:15.5]} 48... Qc6 {[%clk 0:00:37.9]} 49. Kf3 {[%clk 0:00:14.6]} 49... Qb7
{[%clk 0:00:38]} 1/2-1/2

[Event "Late-Titled-Tuesday-Blitz-February-20-2024"]
[Site "Chess.com"]
[Date "2024.02.20"]
[Round "11"]
[White "RantomOpening"]
[Black "Abund"]
[Result "1-0"]
[WhiteElo "2596"]
[BlackElo "2759"]
[TimeControl "180+1"]
[EndTime "16:04:59 PST"]
[Termination "RantomOpening won by resignation"]

1. c4 {[%clk 0:02:57.9]} 1... Nf6 {[%clk 0:02:53.7]} 2. Nf3 {[%clk 0:02:58]}
2... g6 {[%clk 0:02:47.6]} 3. Nc3 {[%clk 0:02:58.2]} 3... d5 {[%clk 0:02:45.4]}
4. cxd5 {[%clk 0:02:58]} 4... Nxd5 {[%clk 0:02:46.3]} 5. e3 {[%clk 0:02:51.6]}
5... Bg7 {[%clk 0:02:42.4]} 6. Bc4 {[%clk 0:02:51.1]} 6... Nxc3 {[%clk
0:02:36.2]} 7. bxc3 {[%clk 0:02:47.1]} 7... O-O {[%clk 0:02:34.9]} 8. O-O {[%clk
0:02:46.5]} 8... c5 {[%clk 0:02:35.3]} 9. d4 {[%clk 0:02:46.4]} 9... Qc7 {[%clk
0:02:33.8]} 10. Qe2 {[%clk 0:02:39.8]} 10... Nc6 {[%clk 0:02:32.1]} 11. h3
{[%clk 0:02:38.7]} 11... b6 {[%clk 0:02:22.3]} 12. Ba6 {[%clk 0:02:27.9]} 12...
e6 {[%clk 0:02:11.5]} 13. Ba3 {[%clk 0:02:26.5]} 13... Rd8 {[%clk 0:02:04]} 14.
dxc5 {[%clk 0:02:23.1]} 14... Na5 {[%clk 0:01:57]} 15. Bxc8 {[%clk 0:02:13.5]}
15... Raxc8 {[%clk 0:01:56.8]} 16. cxb6 {[%clk 0:02:08]} 16... axb6 {[%clk
0:01:56.9]} 17. Bb4 {[%clk 0:01:57.9]} 17... Nc4 {[%clk 0:01:52.8]} 18. Nd4
{[%clk 0:01:55]} 18... e5 {[%clk 0:01:47.8]} 19. Nb3 {[%clk 0:01:53.9]} 19...
Qc6 {[%clk 0:01:44.5]} 20. Rfd1 {[%clk 0:01:52.9]} 20... Re8 {[%clk 0:01:39.1]}
21. Qf3 {[%clk 0:01:48]} 21... e4 {[%clk 0:01:33.3]} 22. Qg4 {[%clk 0:01:47.3]}
22... Ne5 {[%clk 0:01:33.1]} 23. Qe2 {[%clk 0:01:36]} 23... Nd3 {[%clk
0:01:33.1]} 24. Rxd3 {[%clk 0:01:30.7]} 24... exd3 {[%clk 0:01:31.8]} 25. Qxd3
{[%clk 0:01:31.6]} 25... Red8 {[%clk 0:00:49.3]} 26. Nd4 {[%clk 0:01:27.1]}
26... Qd5 {[%clk 0:00:49.1]} 27. a4 {[%clk 0:01:21.9]} 27... Ra8 {[%clk
0:00:48.6]} 28. Kf1 {[%clk 0:00:52.6]} 28... Rd7 {[%clk 0:00:47.9]} 29. Qb5
{[%clk 0:00:49.4]} 29... Qb7 {[%clk 0:00:35.6]} 30. a5 {[%clk 0:00:47.8]} 30...
Rd5 {[%clk 0:00:29.2]} 31. Qc6 {[%clk 0:00:37]} 31... Qxc6 {[%clk 0:00:21.8]}
32. Nxc6 {[%clk 0:00:37.9]} 32... bxa5 {[%clk 0:00:20.3]} 33. Ne7+ {[%clk
0:00:37.8]} 33... Kh8 {[%clk 0:00:18.8]} 34. Nxd5 {[%clk 0:00:38]} 34... a4
{[%clk 0:00:12.9]} 35. Nb6 {[%clk 0:00:37.4]} 35... Rd8 {[%clk 0:00:12.3]} 36.
Nc4 {[%clk 0:00:35.4]} 36... Rc8 {[%clk 0:00:11.9]} 37. Nd2 {[%clk 0:00:34.9]}
37... Bxc3 {[%clk 0:00:10.5]} 38. Rc1 {[%clk 0:00:34.5]} 38... Bxb4 {[%clk
0:00:09.6]} 39. Rxc8+ {[%clk 0:00:34.4]} 39... Kg7 {[%clk 0:00:10.5]} 40. Nb1
{[%clk 0:00:33.6]} 40... a3 {[%clk 0:00:08]} 41. Ra8 {[%clk 0:00:33.6]} 41... a2
{[%clk 0:00:08.6]} 42. Rxa2 {[%clk 0:00:33.3]} 1-0

[Event "Late-Titled-Tuesday-Blitz-February-20-2024"]
[Site "Chess.com"]
[Date "2024.02.20"]
[Round "11"]
[White "Bryanl106"]
[Black "TigrVShlyape"]
[Result "0-1"]
[WhiteElo "2552"]
[BlackElo "2899"]
[TimeControl "180+1"]
[EndTime "16:05:00 PST"]
[Termination "TigrVShlyape won by checkmate"]

1. e4 {[%clk 0:02:56.7]} 1... e5 {[%clk 0:02:58.7]} 2. Nf3 {[%clk 0:02:56.4]}
2... Nc6 {[%clk 0:02:52.6]} 3. Nc3 {[%clk 0:02:56]} 3... Nf6 {[%clk 0:02:42.8]}
4. a3 {[%clk 0:02:56.2]} 4... d6 {[%clk 0:02:34.8]} 5. d4 {[%clk 0:02:55.9]}
5... Bg4 {[%clk 0:02:28.5]} 6. Bb5 {[%clk 0:02:50]} 6... exd4 {[%clk 0:02:27.2]}
7. Qxd4 {[%clk 0:02:46.1]} 7... Bxf3 {[%clk 0:02:21.9]} 8. gxf3 {[%clk 0:02:47]}
8... Be7 {[%clk 0:02:13.2]} 9. Rg1 {[%clk 0:02:44.5]} 9... O-O {[%clk
0:02:12.4]} 10. Bxc6 {[%clk 0:02:44.6]} 10... bxc6 {[%clk 0:02:12.2]} 11. Bh6
{[%clk 0:02:44.8]} 11... g6 {[%clk 0:02:00.1]} 12. Bxf8 {[%clk 0:02:44.8]} 12...
Bxf8 {[%clk 0:01:55.3]} 13. O-O-O {[%clk 0:02:42.9]} 13... Bg7 {[%clk
0:01:53.2]} 14. Qd3 {[%clk 0:02:40.1]} 14... Rb8 {[%clk 0:01:51.5]} 15. e5
{[%clk 0:02:36]} 15... Nd5 {[%clk 0:01:45.4]} 16. Nxd5 {[%clk 0:02:27.4]} 16...
cxd5 {[%clk 0:01:44.5]} 17. Qxd5 {[%clk 0:02:11.9]} 17... Bxe5 {[%clk
0:01:43.3]} 18. b3 {[%clk 0:02:05.8]} 18... Qh4 {[%clk 0:01:41.9]} 19. Rg4
{[%clk 0:01:49]} 19... Qxf2 {[%clk 0:01:38]} 20. h4 {[%clk 0:01:35.7]} 20...
Qe3+ {[%clk 0:01:34.6]} 21. Qd2 {[%clk 0:01:28.4]} 21... Qxf3 {[%clk 0:01:34.1]}
22. Ra4 {[%clk 0:01:26]} 22... h5 {[%clk 0:01:16.3]} 23. Qd3 {[%clk 0:00:56.7]}
23... Qf2 {[%clk 0:01:13.2]} 24. Qd2 {[%clk 0:00:53.7]} 24... Qc5 {[%clk
0:01:09.8]} 25. Qd3 {[%clk 0:00:43.1]} 25... a5 {[%clk 0:01:04.2]} 26. Rf1
{[%clk 0:00:40.2]} 26... Rf8 {[%clk 0:00:58]} 27. Kb1 {[%clk 0:00:33.2]} 27...
Kg7 {[%clk 0:00:55.9]} 28. Ka2 {[%clk 0:00:31.9]} 28... d5 {[%clk 0:00:50.5]}
29. Re1 {[%clk 0:00:20.7]} 29... Bf6 {[%clk 0:00:45.6]} 30. Rf1 {[%clk
0:00:20.3]} 30... Re8 {[%clk 0:00:43.1]} 31. Raf4 {[%clk 0:00:19.5]} 31... Re6
{[%clk 0:00:42.9]} 32. Qd2 {[%clk 0:00:09.7]} 32... c6 {[%clk 0:00:40.8]} 33.
Qd3 {[%clk 0:00:09.6]} 33... Qd6 {[%clk 0:00:39.1]} 34. Qd2 {[%clk 0:00:09.3]}
34... Qe5 {[%clk 0:00:39.3]} 35. c3 {[%clk 0:00:08.5]} 35... Qd6 {[%clk
0:00:33.8]} 36. R1f2 {[%clk 0:00:07.3]} 36... Qe7 {[%clk 0:00:33]} 37. Kb2
{[%clk 0:00:05.1]} 37... Kg8 {[%clk 0:00:31.8]} 38. Ka2 {[%clk 0:00:05.5]} 38...
Qd6 {[%clk 0:00:27.1]} 39. Kb2 {[%clk 0:00:05.9]} 39... Be7 {[%clk 0:00:26.4]}
40. Rxf7 {[%clk 0:00:06]} 40... Qxa3+ {[%clk 0:00:26.3]} 41. Kc2 {[%clk
0:00:06.7]} 41... Qa2+ {[%clk 0:00:26.6]} 42. Kd3 {[%clk 0:00:07.2]} 42... Qb1+
{[%clk 0:00:26.1]} 43. Kd4 {[%clk 0:00:05.9]} 43... Qe4# {[%clk 0:00:25.7]} 0-1

[Event "Late-Titled-Tuesday-Blitz-February-20-2024"]
[Site "Chess.com"]
[Date "2024.02.20"]
[Round "11"]
[White "PacingRope"]
[Black "dedpihto_v_kozhanom_palto"]
[Result "1-0"]
[WhiteElo "2918"]
[BlackElo "2710"]
[TimeControl "180+1"]
[EndTime "16:05:02 PST"]
[Termination "PacingRope won on time"]

1. e4 {[%clk 0:02:54.1]} 1... g6 {[%clk 0:03:00.1]} 2. d4 {[%clk 0:02:50.4]}
2... Bg7 {[%clk 0:03:00.3]} 3. Nc3 {[%clk 0:02:50.7]} 3... d6 {[%clk 0:03:00.8]}
4. Be3 {[%clk 0:02:51.3]} 4... Nc6 {[%clk 0:03:01.1]} 5. f3 {[%clk 0:02:50.2]}
5... e5 {[%clk 0:03:01.4]} 6. d5 {[%clk 0:02:49.9]} 6... Nce7 {[%clk 0:03:00.9]}
7. Qd2 {[%clk 0:02:25.3]} 7... f5 {[%clk 0:03:00.5]} 8. O-O-O {[%clk 0:02:25.1]}
8... Nf6 {[%clk 0:03:00.9]} 9. Nge2 {[%clk 0:02:25.2]} 9... O-O {[%clk
0:03:01.2]} 10. h4 {[%clk 0:02:25.6]} 10... b5 {[%clk 0:03:01.6]} 11. exf5
{[%clk 0:01:55]} 11... Nxf5 {[%clk 0:02:47.8]} 12. g4 {[%clk 0:01:54.9]} 12...
b4 {[%clk 0:02:40.9]} 13. Ne4 {[%clk 0:01:34]} 13... Nxe4 {[%clk 0:02:34.5]} 14.
fxe4 {[%clk 0:01:34.9]} 14... Nxe3 {[%clk 0:02:35.1]} 15. Qxe3 {[%clk
0:01:35.8]} 15... Bxg4 {[%clk 0:02:35.4]} 16. Bh3 {[%clk 0:01:34]} 16... Qxh4
{[%clk 0:02:11.4]} 17. Kb1 {[%clk 0:01:18.5]} 17... Rf3 {[%clk 0:01:50.9]} 18.
Qxf3 {[%clk 0:01:15.2]} 18... Bxf3 {[%clk 0:01:45.9]} 19. Be6+ {[%clk
0:01:15.2]} 19... Kh8 {[%clk 0:01:45.2]} 20. Rxh4 {[%clk 0:01:12.7]} 20... Bxe2
{[%clk 0:01:45.9]} 21. Rdh1 {[%clk 0:01:07.9]} 21... Bh5 {[%clk 0:01:33.5]} 22.
Rxh5 {[%clk 0:01:00.4]} 22... gxh5 {[%clk 0:01:32.9]} 23. Rxh5 {[%clk
0:00:40.7]} 23... a5 {[%clk 0:01:09.1]} 24. Bf5 {[%clk 0:00:40.1]} 24... h6
{[%clk 0:01:09]} 25. c3 {[%clk 0:00:39.2]} 25... bxc3 {[%clk 0:00:54.8]} 26.
bxc3 {[%clk 0:00:40.1]} 26... Rg8 {[%clk 0:00:47.9]} 27. Kc2 {[%clk 0:00:39.6]}
27... Bf8 {[%clk 0:00:46.7]} 28. Rh2 {[%clk 0:00:36.3]} 28... Rg3 {[%clk
0:00:44.2]} 29. Kb3 {[%clk 0:00:35.4]} 29... Kg7 {[%clk 0:00:40.5]} 30. Rc2
{[%clk 0:00:33.2]} 30... Be7 {[%clk 0:00:36.4]} 31. Ka4 {[%clk 0:00:33.2]} 31...
h5 {[%clk 0:00:31.2]} 32. Kxa5 {[%clk 0:00:33]} 32... Bg5 {[%clk 0:00:25.7]} 33.
Kb5 {[%clk 0:00:31.5]} 33... Be3 {[%clk 0:00:15.4]} 34. a4 {[%clk 0:00:30.2]}
34... Bc5 {[%clk 0:00:12.4]} 35. a5 {[%clk 0:00:29.8]} 35... Rg1 {[%clk
0:00:13]} 36. Ra2 {[%clk 0:00:28]} 36... Rc1 {[%clk 0:00:04.4]} 37. c4 {[%clk
0:00:24.8]} 1-0

[Event "Late-Titled-Tuesday-Blitz-February-20-2024"]
[Site "Chess.com"]
[Date "2024.02.20"]
[Round "11"]
[White "ahkashefi2800"]
[Black "JoakimVonAnd"]
[Result "0-1"]
[WhiteElo "2568"]
[BlackElo "2701"]
[TimeControl "180+1"]
[EndTime "16:05:06 PST"]
[Termination "JoakimVonAnd won on time"]

1. e4 {[%clk 0:02:58.1]} 1... c6 {[%clk 0:02:55.8]} 2. d4 {[%clk 0:02:47.3]}
2... d5 {[%clk 0:02:56.7]} 3. exd5 {[%clk 0:02:47.8]} 3... cxd5 {[%clk 0:02:56]}
4. c4 {[%clk 0:02:48.2]} 4... Nf6 {[%clk 0:02:55.9]} 5. Nc3 {[%clk 0:02:44]}
5... g6 {[%clk 0:02:55.5]} 6. Bg5 {[%clk 0:02:41.2]} 6... Bg7 {[%clk 0:02:54.2]}
7. h4 {[%clk 0:02:36.4]} 7... Nc6 {[%clk 0:02:34.8]} 8. h5 {[%clk 0:02:23.1]}
8... Nxh5 {[%clk 0:02:20.4]} 9. cxd5 {[%clk 0:02:00.7]} 9... Nxd4 {[%clk
0:02:02.2]} 10. g4 {[%clk 0:02:00.1]} 10... Bxg4 {[%clk 0:01:53.1]} 11. Qxg4
{[%clk 0:01:59]} 11... Nc2+ {[%clk 0:01:53.1]} 12. Kd2 {[%clk 0:01:46.4]} 12...
Nxa1 {[%clk 0:01:53]} 13. Bb5+ {[%clk 0:01:45.7]} 13... Kf8 {[%clk 0:01:53]} 14.
Nge2 {[%clk 0:01:44.4]} 14... a6 {[%clk 0:01:46.4]} 15. Bd3 {[%clk 0:01:40.6]}
15... Nf6 {[%clk 0:01:40.3]} 16. Bxf6 {[%clk 0:01:08]} 16... Bxf6 {[%clk
0:01:41.2]} 17. Rxa1 {[%clk 0:01:07.6]} 17... b5 {[%clk 0:01:41.6]} 18. a3
{[%clk 0:01:05.6]} 18... h5 {[%clk 0:01:40.5]} 19. Qf3 {[%clk 0:01:05.1]} 19...
Kg7 {[%clk 0:01:35.9]} 20. Rg1 {[%clk 0:01:02.2]} 20... h4 {[%clk 0:01:24.8]}
21. Nf4 {[%clk 0:01:01.9]} 21... Qd6 {[%clk 0:01:07.5]} 22. Ne4 {[%clk
0:00:59.4]} 22... Qe5 {[%clk 0:01:07.6]} 23. Nxf6 {[%clk 0:00:42.7]} 23... Qxb2+
{[%clk 0:01:02.9]} 24. Bc2 {[%clk 0:00:36.5]} 24... Qxf6 {[%clk 0:00:57.9]} 25.
Ne6+ {[%clk 0:00:26.5]} 25... Kg8 {[%clk 0:00:39.3]} 26. Qxf6 {[%clk 0:00:09.4]}
26... exf6 {[%clk 0:00:40.2]} 27. Nc7 {[%clk 0:00:02.3]} 27... Rd8 {[%clk
0:00:40.1]} 28. Be4 {[%clk 0:00:02.2]} 28... f5 {[%clk 0:00:36.6]} 29. Bxf5
{[%clk 0:00:01.9]} 29... h3 {[%clk 0:00:36.3]} 30. Rh1 {[%clk 0:00:01.5]} 30...
gxf5 {[%clk 0:00:36.4]} 31. Ke3 {[%clk 0:00:02.1]} 31... Kg7 {[%clk 0:00:35.8]}
32. Nxa6 {[%clk 0:00:02.8]} 32... Rxd5 {[%clk 0:00:35.4]} 33. Nb4 {[%clk
0:00:03.3]} 33... Re5+ {[%clk 0:00:35.6]} 34. Kf4 {[%clk 0:00:03.9]} 34... Re2
{[%clk 0:00:35.7]} 35. f3 {[%clk 0:00:04.3]} 35... h2 {[%clk 0:00:36.3]} 36. Nd5
{[%clk 0:00:04.5]} 36... Rg2 {[%clk 0:00:35.6]} 37. Ne3 {[%clk 0:00:04.7]} 37...
Rg1 {[%clk 0:00:35.3]} 38. Nxf5+ {[%clk 0:00:05.1]} 38... Kg8 {[%clk 0:00:34.7]}
39. Ng3 {[%clk 0:00:04.6]} 39... Rh3 {[%clk 0:00:33.1]} 40. Nf5 {[%clk
0:00:01.6]} 40... Rxh1 {[%clk 0:00:32.6]} 0-1

[Event "Late-Titled-Tuesday-Blitz-February-20-2024"]
[Site "Chess.com"]
[Date "2024.02.20"]
[Round "11"]
[White "janhelmer03"]
[Black "ImportedItalianMaple"]
[Result "0-1"]
[WhiteElo "2290"]
[BlackElo "2493"]
[TimeControl "180+1"]
[EndTime "16:05:13 PST"]
[Termination "ImportedItalianMaple won by resignation"]

1. d4 {[%clk 0:03:00.9]} 1... g6 {[%clk 0:02:59.6]} 2. c4 {[%clk 0:02:59.6]}
2... Bg7 {[%clk 0:02:59.6]} 3. Nf3 {[%clk 0:03:00.3]} 3... d6 {[%clk 0:02:55.8]}
4. g3 {[%clk 0:03:00.4]} 4... Nc6 {[%clk 0:02:55.3]} 5. Bg2 {[%clk 0:02:58.7]}
5... e5 {[%clk 0:02:55.9]} 6. dxe5 {[%clk 0:02:55.6]} 6... Nxe5 {[%clk
0:02:56.3]} 7. O-O {[%clk 0:02:55]} 7... Ne7 {[%clk 0:02:39.9]} 8. Nxe5 {[%clk
0:02:52.7]} 8... Bxe5 {[%clk 0:02:39.7]} 9. Qc2 {[%clk 0:02:49.1]} 9... O-O
{[%clk 0:02:38.6]} 10. Nc3 {[%clk 0:02:48.5]} 10... Nc6 {[%clk 0:02:35.8]} 11.
Bh6 {[%clk 0:02:42.1]} 11... Re8 {[%clk 0:02:35.1]} 12. Rad1 {[%clk 0:02:35.9]}
12... Nd4 {[%clk 0:01:51.5]} 13. Qd3 {[%clk 0:02:30.4]} 13... Bf5 {[%clk
0:01:43.1]} 14. e4 {[%clk 0:02:29]} 14... Bd7 {[%clk 0:01:38.8]} 15. Be3 {[%clk
0:02:27.5]} 15... c5 {[%clk 0:01:38.1]} 16. f4 {[%clk 0:02:26.9]} 16... Bg7
{[%clk 0:01:37.8]} 17. h3 {[%clk 0:02:21.4]} 17... Bc6 {[%clk 0:01:36.5]} 18.
Nd5 {[%clk 0:02:19.2]} 18... Bxd5 {[%clk 0:01:35.9]} 19. exd5 {[%clk 0:02:15.2]}
19... Qb6 {[%clk 0:01:20.7]} 20. b3 {[%clk 0:02:14.3]} 20... a5 {[%clk
0:01:20.5]} 21. Kh2 {[%clk 0:02:07.3]} 21... a4 {[%clk 0:01:20.7]} 22. Bxd4
{[%clk 0:02:07.6]} 22... Bxd4 {[%clk 0:01:20.3]} 23. f5 {[%clk 0:02:08.5]} 23...
axb3 {[%clk 0:01:18.7]} 24. fxg6 {[%clk 0:02:07.5]} 24... hxg6 {[%clk
0:01:16.5]} 25. axb3 {[%clk 0:02:01.6]} 25... Ra2 {[%clk 0:01:15.2]} 26. Rde1
{[%clk 0:01:36.8]} 26... Qd8 {[%clk 0:01:02.3]} 27. Qf3 {[%clk 0:01:32.5]} 27...
f6 {[%clk 0:00:55.3]} 28. Re6 {[%clk 0:01:28.9]} 28... Rxe6 {[%clk 0:00:51.2]}
29. dxe6 {[%clk 0:01:28.8]} 29... Qe7 {[%clk 0:00:44.7]} 30. Re1 {[%clk
0:01:27.5]} 30... Kg7 {[%clk 0:00:42.9]} 31. Kh1 {[%clk 0:01:25.9]} 31... Ra7
{[%clk 0:00:26.5]} 32. h4 {[%clk 0:01:14.2]} 32... Be5 {[%clk 0:00:26.5]} 33.
Bh3 {[%clk 0:01:09.1]} 33... b5 {[%clk 0:00:18]} 34. h5 {[%clk 0:01:03.3]} 34...
Qb7 {[%clk 0:00:16.3]} 35. Bg2 {[%clk 0:00:51]} 35... Qxf3 {[%clk 0:00:15.9]}
36. Bxf3 {[%clk 0:00:51.9]} 36... gxh5 {[%clk 0:00:16.5]} 37. Bxh5 {[%clk
0:00:51.7]} 37... bxc4 {[%clk 0:00:16.4]} 38. bxc4 {[%clk 0:00:44.5]} 38... f5
{[%clk 0:00:15.8]} 39. g4 {[%clk 0:00:38.6]} 39... Kf6 {[%clk 0:00:16.3]} 40.
gxf5 {[%clk 0:00:38.7]} 40... Rh7 {[%clk 0:00:17]} 41. Kg2 {[%clk 0:00:32.8]}
41... Rxh5 {[%clk 0:00:17.5]} 42. Kf3 {[%clk 0:00:32.9]} 42... Rxf5+ {[%clk
0:00:17.9]} 43. Ke4 {[%clk 0:00:33.5]} 43... Rf4+ {[%clk 0:00:18.2]} 44. Kd5
{[%clk 0:00:33.3]} 44... Rd4+ {[%clk 0:00:17.7]} 45. Kc6 {[%clk 0:00:33.5]}
45... Kxe6 {[%clk 0:00:18.1]} 46. Kb5 {[%clk 0:00:32.7]} 46... Rd3 {[%clk
0:00:18.3]} 47. Rh1 {[%clk 0:00:32.1]} 47... Kf5 {[%clk 0:00:18.3]} 48. Rf1+
{[%clk 0:00:30.8]} 48... Ke4 {[%clk 0:00:18.7]} 49. Rf8 {[%clk 0:00:29.7]} 49...
Rb3+ {[%clk 0:00:18.6]} 50. Kc6 {[%clk 0:00:29.6]} 50... Kd4 {[%clk 0:00:18.7]}
51. Ra8 {[%clk 0:00:29]} 51... Kxc4 {[%clk 0:00:18.9]} 52. Ra4+ {[%clk
0:00:29.9]} 52... Rb4 {[%clk 0:00:19.1]} 0-1

[Event "Late-Titled-Tuesday-Blitz-February-20-2024"]
[Site "Chess.com"]
[Date "2024.02.20"]
[Round "11"]
[White "dropstoneDP"]
[Black "DarkAlekhine"]
[Result "1/2-1/2"]
[WhiteElo "3003"]
[BlackElo "2857"]
[TimeControl "180+1"]
[EndTime "16:05:18 PST"]
[Termination "Game drawn - insufficient material"]

1. e4 {[%clk 0:03:00.9]} 1... Nf6 {[%clk 0:02:59.8]} 2. e5 {[%clk 0:02:59.4]}
2... Nd5 {[%clk 0:03:00.1]} 3. d4 {[%clk 0:02:58.5]} 3... d6 {[%clk 0:03:00.7]}
4. Nf3 {[%clk 0:02:59]} 4... g6 {[%clk 0:03:00.6]} 5. c4 {[%clk 0:02:55.6]} 5...
Nb6 {[%clk 0:03:00.5]} 6. exd6 {[%clk 0:02:56.2]} 6... cxd6 {[%clk 0:03:00.1]}
7. h3 {[%clk 0:02:56]} 7... Bg7 {[%clk 0:03:00.4]} 8. Be2 {[%clk 0:02:56.5]}
8... O-O {[%clk 0:03:00.7]} 9. O-O {[%clk 0:02:57.1]} 9... Nc6 {[%clk
0:03:00.7]} 10. d5 {[%clk 0:02:51.4]} 10... Ne5 {[%clk 0:02:57.9]} 11. Nxe5
{[%clk 0:02:50.4]} 11... Bxe5 {[%clk 0:02:58.8]} 12. Nd2 {[%clk 0:02:49.8]}
12... Bf5 {[%clk 0:02:51.3]} 13. Nf3 {[%clk 0:02:48.6]} 13... Bg7 {[%clk
0:02:51.2]} 14. Nd4 {[%clk 0:02:47.5]} 14... Bd7 {[%clk 0:02:51.1]} 15. Be3
{[%clk 0:02:45.8]} 15... Na4 {[%clk 0:02:23.1]} 16. Qd2 {[%clk 0:02:44.6]} 16...
a5 {[%clk 0:02:19.1]} 17. Rfe1 {[%clk 0:02:41.9]} 17... Nc5 {[%clk 0:02:16.7]}
18. Bh6 {[%clk 0:02:26.2]} 18... Qb6 {[%clk 0:02:16.1]} 19. Bxg7 {[%clk
0:02:25.8]} 19... Kxg7 {[%clk 0:02:17]} 20. Bf1 {[%clk 0:02:24.9]} 20... Rfe8
{[%clk 0:02:15.1]} 21. Re3 {[%clk 0:02:23.7]} 21... Qb4 {[%clk 0:02:14]} 22. Qc2
{[%clk 0:02:19.3]} 22... e5 {[%clk 0:01:08.6]} 23. dxe6 {[%clk 0:02:14.2]} 23...
Nxe6 {[%clk 0:01:08.8]} 24. Nxe6+ {[%clk 0:02:13.2]} 24... Rxe6 {[%clk
0:01:09.7]} 25. a3 {[%clk 0:02:07.7]} 25... Qc5 {[%clk 0:00:57.8]} 26. Qc3+
{[%clk 0:02:07.5]} 26... Kg8 {[%clk 0:00:57.9]} 27. Rd1 {[%clk 0:02:03.3]} 27...
Rxe3 {[%clk 0:00:15.1]} 28. Qxe3 {[%clk 0:02:04.2]} 28... Be6 {[%clk 0:00:04.6]}
29. Qd4 {[%clk 0:02:01.9]} 29... Qxd4 {[%clk 0:00:03.1]} 30. Rxd4 {[%clk
0:02:02.8]} 30... Rd8 {[%clk 0:00:03.4]} 31. c5 {[%clk 0:02:02]} 31... d5 {[%clk
0:00:03]} 32. f4 {[%clk 0:01:56.4]} 32... Kf8 {[%clk 0:00:03]} 33. Kf2 {[%clk
0:01:56.6]} 33... Ke7 {[%clk 0:00:03.3]} 34. b4 {[%clk 0:01:55.1]} 34... axb4
{[%clk 0:00:03.3]} 35. Rxb4 {[%clk 0:01:56]} 35... Rd7 {[%clk 0:00:02.9]} 36.
Ke3 {[%clk 0:01:56.6]} 36... d4+ {[%clk 0:00:01.7]} 37. Rxd4 {[%clk 0:01:55.7]}
37... Rc7 {[%clk 0:00:02.2]} 38. Rb4 {[%clk 0:01:55.9]} 38... Rxc5 {[%clk
0:00:02.5]} 39. Rxb7+ {[%clk 0:01:55.5]} 39... Kf6 {[%clk 0:00:02.8]} 40. a4
{[%clk 0:01:50.1]} 40... Rc3+ {[%clk 0:00:03]} 41. Kd4 {[%clk 0:01:44.7]} 41...
Ra3 {[%clk 0:00:03.9]} 42. Bb5 {[%clk 0:01:44]} 42... h5 {[%clk 0:00:04.5]} 43.
Ra7 {[%clk 0:01:35.2]} 43... Kf5 {[%clk 0:00:04.7]} 44. Be8 {[%clk 0:01:32.4]}
44... Kxf4 {[%clk 0:00:04.5]} 45. Bxf7 {[%clk 0:01:32.3]} 45... Bf5 {[%clk
0:00:04.8]} 46. Bd5 {[%clk 0:01:30]} 46... Rd3+ {[%clk 0:00:04]} 47. Kc5 {[%clk
0:01:30.4]} 47... Ra3 {[%clk 0:00:04.9]} 48. a5 {[%clk 0:01:30]} 48... Ra1
{[%clk 0:00:04.7]} 49. a6 {[%clk 0:01:21]} 49... Bd3 {[%clk 0:00:04.5]} 50. Bb7
{[%clk 0:01:21.1]} 50... Kg3 {[%clk 0:00:04.2]} 51. Ra8 {[%clk 0:01:21.4]} 51...
Bxa6 {[%clk 0:00:01.8]} 52. Bxa6 {[%clk 0:01:21.7]} 52... g5 {[%clk 0:00:02.1]}
53. Bb7 {[%clk 0:01:20.1]} 53... Rxa8 {[%clk 0:00:01.2]} 54. Bxa8 {[%clk
0:01:20.5]} 54... g4 {[%clk 0:00:02.1]} 55. hxg4 {[%clk 0:01:20]} 55... Kxg4
{[%clk 0:00:03]} 56. Kd4 {[%clk 0:00:50.3]} 56... Kg3 {[%clk 0:00:03.9]} 57. Ke3
{[%clk 0:00:50.9]} 57... h4 {[%clk 0:00:04.5]} 58. Ke2 {[%clk 0:00:51.4]} 58...
h3 {[%clk 0:00:05.1]} 59. gxh3 {[%clk 0:00:51.2]} 59... Kxh3 {[%clk 0:00:06]}
1/2-1/2